Cogmind - Beta 9.6 @@@ ROGUE MODE // 2020.04.15 @ 17:16:44 Player: Aaron Result: Destroyed by G-47 Trooper with Particle Gun Performance ------------- Evolutions (0) 0 Regions Visited (1) 200 Robots Destroyed (6) 30 Value Destroyed (29) 29 Prototype IDs (0) 0 Alien Tech Used (0) 0 Bonus (0) 0 TOTAL SCORE: 259 Bonus ------- None Cogmind --------- Core Integrity 0/250 Matter 170/300 Energy 250/250 System Corruption 0% Temperature Cool (9) Movement Core (150) Ox2 Location -10/Materials Parts ------- > --- POWER (1) -------- Ion Engine > --- PROPULSION (2) --- (None) > --- UTILITY (2) ------ Seismic Analyzer > --- WEAPON (2) ------- Hammer > --- INVENTORY (4) ---- Aluminum Leg Aluminum Leg Medium Laser Assault Rifle Peak State ------------ > --- POWER ------------ Ion Engine > --- PROPULSION ------- Aluminum Leg Aluminum Leg > --- UTILITY ---------- Seismic Analyzer > --- WEAPON ----------- Assault Rifle Assault Rifle > --- INVENTORY -------- Medium Laser [Rating: 6] Favorites ----------- Power Ion Engine Engine Ion Engine Propulsion Aluminum Leg Leg Aluminum Leg Hover Unit Hover Unit Utility Seismic Analyzer Processor Seismic Analyzer Weapon Assault Rifle Energy Gun Medium Laser Ballistic Gun Assault Rifle Impact Weapon Hammer Special Melee Weapon Datajack Build | -11 -10 ------- Run | Scr Mat Slots Evolved . | . . Power . | . . Propulsion . | . . Utility . | . . Weapon . | . . Parts Attached 11 | 7 4 Power 1 | 1 . Engine 1 | 1 . Core . | . . Reactor . | . . Propulsion 3 | 2 1 Treads . | . . Leg 2 | 2 . Wheel . | . . Hover 1 | . 1 Flight . | . . Utility 1 | 1 . Device . | . . Storage . | . . Processor 1 | 1 . Hackware . | . . Protection . | . . Artifact . | . . Weapon 6 | 3 3 Energy Gun 1 | 1 . Energy Cannon . | . . Ballistic Gun 2 | 2 . Ballistic Cannon . | . . Launcher . | . . Special Weapon . | . . Impact Weapon 1 | . 1 Slashing Weapon . | . . Piercing Weapon . | . . Special Melee Weapon 2 | . 2 Unidentified Prototypes . | . . Parts Lost 2 | . 2 Power . | . . Propulsion 1 | . 1 Utility . | . . Weapon 1 | . 1 Highest Loss Streak 2 | . 2 Average Slot Usage (%) 73 | . 73 Engine 14 | . 14 Leg 13 | . 13 Hover 6 | . 6 Processor 14 | . 14 Ballistic Gun 1 | . 1 Impact Weapon 12 | . 12 Special Melee Weapon 11 | . 11 Naked Turns . | . . Heaviest Build 9 | 9 9 Greatest Support 20 | 20 20 Greatest Overweight (x) 1 | . 1 Average Overweight (x) . | . . Largest Inventory Capacity 4 | 4 4 Average Capacity 4 | 4 4 Most Carried 4 | 4 4 Average Carried 2 | 1 3 Final Capacity 4 | 4 4 Final Carried 4 | 1 4 Class Distribution -------------------- 100% | Mutant Dominant Class ---------------- Mutant | -10/Materials Resources | -11 -10 ----------- Run | Scr Mat Matter Collected 290 | 290 . Remotely . | . . Salvage Created 172 | 172 . Parts 12 | 12 . Haulers Intercepted . | . . Recyclers Shooed . | . . Parts Field Recycled . | . . Retrieved Matter . | . . Parts Self-Destructed . | . . Prevented . | . . Kills | -11 -10 ------- Run | Scr Mat Combat Hostiles Destroyed . | . . Classes Destroyed 3 | 3 . Worker 2 | 2 . Tunneler 3 | 3 . Recycler 1 | 1 . Best Kill Streak 3 | 3 . Combat Bots Only . | . . Max Kills in Single Turn 1 | 1 . Gunslinging . | . . Exploded . | . . Melee . | . . Uniques/NPCs Destroyed . | . . Combat | -11 -10 -------- Run | Scr Mat Damage Taken 386 | . 386 Core 252 | . 252 Absorbed by Shields . | . . Core Remaining (%) 100 | 100 . Volleys Fired 20 | 20 . Largest 2 | 2 . Hottest 40 | 40 . Shots Fired 40 | 40 . Gun 40 | 40 . Cannon . | . . Launcher . | . . Special . | . . Kinetic 40 | 40 . Thermal . | . . Explosive . | . . Electromagnetic . | . . Robot Hit Streak 4 | 4 . Robot Miss Streak 2 | 2 . Penetration Max . | . . Secondary Targets . | . . Shots Hit Robots 23 | 20 3 Core Hits 7 | 7 . Critical Hits 1 | 1 . Critical Kills . | . . Critical Parts Destroyed 1 | 1 . Melee Attacks 5 | . 5 Impact . | . . Slashing . | . . Piercing . | . . Sneak Attacks 1 | . 1 Combat Hostiles . | . . Follow-up Attacks . | . . Damage Inflicted 230 | 230 . Guns 230 | 230 . Cannons . | . . Explosions . | . . Melee . | . . Ramming . | . . Kinetic 230 | 230 . Thermal . | . . Explosive . | . . Electromagnetic . | . . Impact . | . . Slashing . | . . Piercing . | . . Highest Corruption . | . . Average Corruption . | . . Corruption Purged . | . . Overload Shots . | . . Overflow Damage . | . . Projectiles . | . . Explosions . | . . Melee . | . . Knockbacks . | . . Impact . | . . Kinetic . | . . Secondary . | . . Self-Inflicted Damage . | . . Shots . | . . Rammed . | . . Targets Rammed . | . . Kicked . | . . Crushed . | . . Highest Temperature . | . . Average Temperature . | . . Received Heat Transfer 219 | . 219 Siege Activations . | . . Robots Corrupted . | . . Combat Hostiles . | . . Parts Fried . | . . Impact Corruptions . | . . Robots Melted . | . . Combat Hostiles . | . . Parts Melted . | . . Heat Transferred . | . . Parts Sabotaged . | . . Parts Stolen . | . . Parts Stripped . | . . Power Chain Reactions . | . . Missiles Intercepted . | . . Alert | -11 -10 ------- Run | Scr Mat Peak Influence 30 | 30 19 Average Influence 14 | 12 16 Maximum Alert Level . | . . Low Security (%) 100 | 100 100 Level 1 . | . . Level 2 . | . . Level 3 . | . . Level 4 . | . . Level 5 . | . . High Security . | . . Max Security . | . . Squads Dispatched . | . . Investigation . | . . Extermination . | . . Reinforcement . | . . Assault . | . . Garrison . | . . Intercept . | . . Construction Impeded . | . . Haulers Reinforced . | . . Stealth | -11 -10 --------- Run | Scr Mat Distress Signals . | . . Communications Jammed . | . . Distress Signals . | . . Times Spotted 3 | . 3 Peak Tracking Total 2 | . 2 Tactical Retreats 1 | . 1 Traps | -11 -10 ------- Run | Scr Mat Traps Triggered . | . . Indirectly . | . . Trap Hack Attempts . | . . Triggered . | . . Disarmed . | . . Reprogrammed . | . . Reused . | . . Traps Extracted . | . . Installed . | . . Triggered . | . . Machines | -11 -10 ---------- Run | Scr Mat Machines Disabled . | . . Max in Single Turn . | . . Machines Sabotaged . | . . Garrisons Compromised . | . . Overloaded Fab Kills . | . . Fab Network Shutdowns . | . . Hacking | -11 -10 --------- Run | Scr Mat Machines Accessed 1 | . 1 Terminals 1 | . 1 Fabricators . | . . Repair Stations . | . . Recycling Units . | . . Scanalyzers . | . . Garrison Access . | . . Total Hacks 1 | . 1 Successful . | . . Failed 1 | . 1 Catastrophic 1 | . 1 Database Lockouts . | . . Manual . | . . Terminals 1 | . 1 Fabricators . | . . Repair Stations . | . . Recycling Units . | . . Scanalyzers . | . . Garrison Access . | . . Terminal Hacks . | . . Fabricator Hacks . | . . Repair Station Hacks . | . . Recycling Unit Hacks . | . . Scanalyzer . | . . Garrison Access Hacks . | . . Unauthorized Hacks . | . . Terminals . | . . Fabricators . | . . Repair Stations . | . . Recycling Units . | . . Scanalyzers . | . . Garrison Access . | . . Data Cores Recovered . | . . Used . | . . Hacking Detections 1 | . 1 Full Trace Events . | . . Feedback Events . | . . Feedback Blocked . | . . Robot Schematics Acquired . | . . Robots Built . | . . Matter . | . . Time . | . . Total Robot Build Rating . | . . Part Schematics Acquired . | . . Parts Built . | . . Matter . | . . Time . | . . Total Part Build Rating . | . . Parts Repaired . | . . Time . | . . Parts Recycled . | . . Recycled Matter . | . . Retrieved Matter . | . . Retrieved Components . | . . Parts Scanalyzed . | . . Part Schematics Acquired . | . . Parts Damaged . | . . Bothacking | -11 -10 ------------ Run | Scr Mat Used RIF Installer . | . . Robots Hacked 2 | . 2 Non-combat 1 | . 1 Combat 1 | . 1 Robot Hacks Applied 2 | . 2 parse_system 2 | . 2 Relay Couplers Released . | . . Robots Rewired . | . . Allies Hacked . | . . Hacks Repelled . | . . Allies | -11 -10 -------- Run | Scr Mat Total Allies . | . . Largest Group . | . . Highest-Rated Group . | . . Highest-Rated Ally . | . . Total Orders . | . . Ally Attacks . | . . Total Damage . | . . Kills . | . . Allies Corrupted . | . . Allies Melted . | . . Intel | -11 -10 ------- Run | Scr Mat Robot Analysis Total . | . . Derelict Logs Recovered . | . . Drone Launches . | . . Drone Recoveries . | . . Exploration | -11 -10 ------------- Run | Scr Mat Turns Passed 282 | 137 145 Spaces Moved 139 | 61 78 Core 18 | 18 . Treads . | . . Legs 88 | 43 45 Wheels . | . . Hover 33 | . 33 Flight . | . . Fastest Speed 50 | 50 120 Average Speed 111 | 99 120 Slowest Speed 130 | 120 130 Overloaded Moves . | . . Propulsion Burnouts . | . . Robots Hopped . | . . Cave-ins Triggered . | . . Exploration Rate (%) 8 | 4 12 Regions Visited 1 Branch Regions . Pre-discovered Areas . | . . Known Exits Taken . | . . Unknown Exits Taken 1 | 1 . Scrap Searched . | . . Spaces Dug . | . . Terrain Destroyed . | . . Melee . | . . Projectile . | . . AOE . | . . Actions | -11 -10 --------- Run | Scr Mat Total 220 | 96 124 Wait 33 | 4 29 Move 138 | 60 78 Hop . | . . Pick Up 9 | 5 4 Fast Attach 3 | 2 1 Attach 4 | 4 . Detach 1 | . 1 Swap 4 | 1 3 Drop 3 | . 3 Fire 20 | 20 . Melee 5 | . 5 Ram . | . . Kick . | . . Crush . | . . Escape Stasis . | . . Rewire . | . . Trap . | . . Miscellaneous . | . . Route ------- -11/Scrapyard -10/Materials History --------- Turn | Location | Event 3 | -11/Scrapyard | Discovered new exit (range 15) 138 | -11/Scrapyard | Entered Materials 272 | -10/Materials | Core integrity fell below 50% 279 | -10/Materials | Core integrity fell below 20% 283 | -10/Materials | Destroyed by G-47 Trooper with Particle Gun Last Messages --------------- 00252_ U-05 Engineer lays Concrete. 00254_ T-07 Excavator is excavating. 00256_ U-05 Engineer lays Concrete. 00256_ Jacked G-47 Trooper... >>parse_system Reading system data... 00257_ U-05 Engineer lays Concrete. 00258_ T-07 Excavator is excavating. 00258_ Jacked G-47 Trooper... 00260_ U-05 Engineer lays Concrete. 00261_ Datajack destroyed. 00262_ U-05 Engineer lays Concrete. 00263_ T-07 Excavator is excavating. 00264_ U-05 Engineer lays Concrete. 00267_ T-07 Excavator is excavating. 00267_ U-05 Engineer lays Concrete. 00270_ Hover Unit destroyed. 00271_ T-07 Excavator is excavating. 00272_ U-05 Engineer lays Concrete. 00276_ T-07 Excavator is excavating. Map ----- +----------------------------------------------------+ | ??????????????????????????????????????????????? | | ??????????????????????????????????????????????? | | ???????????????? ?????????????????????????????? | | ????????????????" ????????????????????????????? | | ???????????????"" ????????????????????????????? | | ???????????????"" ????????????????????????????? | | ???????????#??? ????????????????????????????? | | ???????????# ? ???????????????????????????? | | ???????????# """ #??????????????????????????? | | ??????????## """ #??????????????????????????? | | ?????????? """ #??????????????????????????? | | ??????????? #??????????????????????????? | | ???????????# #??????????????????????????? | | ???????????# """ ######?????????????????????? | | ???????????# """ ##############????????? | | ???????????# """ # #????????? | | ???????????# # "" """ #????????? | | ???????????# # "T """ #????????? | | ???????????# # "" """ ! #????????? | | ???????????# # #????????? | | ?????????### ###+##########????????? | | ?????????# ]/! #??????????????? | | ?????????# ! ###????????????? | | ?????????# ! ?????? | | ?????????########### ####### ########???????? | | ??????????????????# g@ ## #??????????????? | | ??????????????????# g ## #??????????????? | | ??????????????????# ## ?????????????? | | ??????????????????# ## # ????????????? | | ??????????????????# t ###### ####???????????? | | ??????????????????# #?????? #??????????????? | | ??????????????????###??????? #??????????????? | | ???????????????????????????? #??????????????? | | ???????????????????????????? #??????????????? | | ???????????????????????????? #??????????????? | | ???????????????????????????? ??????????????? | | ???????????????????????????? ???????????????? | | ??????????????????????????????????????????????? | | ??????????????????????????????????????????????? | | ??????????????????????????????????????????????? | | ??????????????????????????????????????????????? | | ??????????????????????????????????????????????? | | ??????????????????????????????????????????????? | | ??????????????????????????????????????????????? | | ??????????????????????????????????????????????? | | ??????????????????????????????????????????????? | | ??????????????????????????????????????????????? | | ??????????????????????????????????????????????? | | ??????????????????????????????????????????????? | | ??????????????????????????????????????????????? | +----------------------------------------------------+ Best States ------------- Heat Dissipation 25 Energy Generation 10 Energy Capacity 250 Matter Stores 200 Matter Capacity 300 Sight Range 16 Terrain Scan Density 60 Evasion (%) 50 Item Schematics ----------------- None Robot Schematics ------------------ None Fabricated ------------ Nothing Alien Tech Used ----------------- None Achievements -------------- None Challenges ------------ None Game ------ Seed LinearMicroNanovents Manual? 0 Play Time 00:07:12 Cumulative 5.9 hours Start 2020.04.15 @ 17:09:56 End 2020.04.15 @ 17:16:44 Sessions 1 Manual Loads 0 Difficulty Rogue Special Mode None Game No. 12 Rogue 12 Adventurer 0 Explorer 0 Win Type - Total 0 Types 0/0/0/0/0/0/0 Lore% 10 Gallery% 9 Achievement% 10 Wizard Run 0 Options --------- ASCII 0 Keyboard 0 Movement Mouse Keybinds 0 Fullscreen 1 Font 18/SmallcapsGlow Map View 76x50 Tactical HUD 1 Map Filters NONE Filters NONE Steam 1 RUN: 6567b03d-7124-4be9-b71c-42719f959409